[Event "DFMMLV 2024"]
[Site "Braunfels"]
[Date "2024.05.31"]
[Round "3.53"]
[White "Lebioda-Dette, Kordula"]
[Black "Geletzke, Hannah"]
[Result "0-1"]
[ECO "B50"]
[WhiteElo "1821"]
[BlackElo "1753"]
[Annotator "NA RC"]
[PlyCount "84"]
[EventDate "2024.05.30"]
[EventType "team-tourn"]
[EventCountry "GER"]
[SourceTitle "playchess.com"]
[Source "ChessBase"]
[SourceQuality "1"]
[TimeControl "40/5400+30:1800+30"]

1. e4 {[%emt 0:00:06]} c5 {[%emt 0:00:06]} 2. Nf3 {[%emt 0:00:04]} d6 {[%emt 0:00:12]} 3. Be2 {[%emt 0:00:07]} Nf6 {[%emt 0:00:19]} 4. d3 {[%emt 0:00:07]} g6 {[%emt 0:00:11]} 5. O-O {[%emt 0:00:07]} Bg7 {[%emt 0:00:35]} 6. c3 {[%emt 0:00:10]} O-O {[%emt 0:00:42]} 7. h3 {[%emt 0:00:22]} Nbd7 {[%emt 0:01:40]} 8. Na3 {[%emt 0:02:14]} a6 {[%emt 0:02:12]} 9. Nc2 {[%emt 0:04:40]} b5 {[%emt 0:02:21]} 10. Be3 {[%emt 0:04:17]} Bb7 {[%emt 0:02:48]} 11. Qc1 {[%emt 0:03:13]} Nb6 {[%emt 0:03:16]} 12. Bh6 {[%emt 0:02:11]} c4 {[%emt 0:05:46]} 13. Bxg7 {[%emt 0:01:52]} Kxg7 {[%emt 0:00:59]} 14. e5 {[%emt 0:06:23]} dxe5 {[%emt 0:09:44]} 15. dxc4 {[%emt 0:02:15]} Nxc4 {[%emt 0:11:43]} 16. Ne3 {[%emt 0:11:54]} Nxe3 {[%emt 0:03:39]} 17. Qxe3 {[%emt 0:01:57]} e4 {[%emt 0:04:13]} 18. Nh2 {[%emt 0:07:27]} Qc7 {[%emt 0:05:25]} 19. Ng4 {[%emt 0:01:26]} Rad8 {[%emt 0:04:50]} 20. Rad1 {[%emt 0:01:00]} Nh5 {[%emt 0:04:16]} 21. Rxd8 {[%emt 0:08:00]} Rxd8 {[%emt 0:00:52]} 22. Rd1 {[%emt 0:03:14]} Nf4 {[%emt 0:04:47]} 23. Rxd8 {[%emt 0:03:36]} Nxe2+ {[%emt 0:00:11]} 24. Qxe2 {[%emt 0:00:18]} Qxd8 {[%emt 0:00:16]} 25. Ne3 {[%emt 0:01:21]} Qd6 {[%emt 0:05:51]} 26. Qd1 {[%emt 0:13:02]} Qxd1+ {[%emt 0:03:22]} 27. Nxd1 {[%emt 0:00:14]} Kf6 {[%emt 0:01:49]} 28. Kf1 {[%emt 0:02:27]} Ke5 {[%emt 0:03:25]} 29. Ke2 {[%emt 0:01:59]} f5 {[%emt 0:01:18]} 30. g3 {[%emt 0:04:54]} g5 {[%emt 0:03:50]} 31. Ne3 {[%emt 0:02:21]} f4 {[%emt 0:06:29]} 32. gxf4+ {[%emt 0:05:35]} gxf4 {[%emt 0:00:40]} 33. Nc2 {[%emt 0:01:49]} Bc8 {[%emt 0:02:30]} 34. h4 {[%emt 0:02:21]} Kf5 {[%emt 0:00:49]} 35. Nd4+ {[%emt 0:01:36]} Kg4 {[%emt 0:01:27]} 36. f3+ {[%emt 0:00:19]} exf3+ {[%emt 0:00:41]} 37. Nxf3 {[%emt 0:00:11]} Bb7 {[%emt 0:01:35]} 38. Ng5 {[%emt 0:01:24]} h6 {[%emt 0:00:53]} 39. Ne6 {[%emt 0:00:09]} Bd5 {[%emt 0:01:05]} 40. Nc7 {[%emt 0:00:40]} Bxa2 {[%emt 0:00:11]} 41. Nxa6 {[%emt 0:30:19]} Kxh4 {[%emt 0:30:35]} 42. Nb4 {[%emt 0:00:00]} Kg3 {[%emt 0:00:00]} 0-1

[Event "DFMMLV 2024"]
[Site "Braunfels"]
[Date "2024.06.01"]
[Round "4.1"]
[White "Voicu-Jagodzinsky, Carmen"]
[Black "Klek, Hanna Marie"]
[Result "1/2-1/2"]
[ECO "B32"]
[WhiteElo "2228"]
[BlackElo "2294"]
[Annotator "RC"]
[PlyCount "63"]
[EventDate "2024.05.30"]
[EventType "team-tourn"]
[EventCountry "GER"]
[SourceTitle "playchess.com"]
[Source "ChessBase"]
[SourceQuality "1"]
[TimeControl "40/5400+30:1800+30"]

1. e4 {[%emt 0:00:03]} c5 {[%emt 0:00:06]} 2. Nf3 {[%emt 0:00:05]} Nc6 {[%emt 0:00:05]} 3. d4 {[%emt 0:00:03]} cxd4 {[%emt 0:00:07]} 4. Nxd4 {[%emt 0:00:02]} e5 {[%emt 0:00:10]} 5. Nb5 {[%emt 0:00:05]} d6 {[%emt 0:00:07]} 6. c4 {[%emt 0:00:03]} Be6 {[%emt 0:00:12]} 7. Bd3 {[%emt 0:00:53]} g6 {[%emt 0:00:52]} 8. O-O {[%emt 0:00:41]} a6 {[%emt 0:00:29]} 9. N5c3 {[%emt 0:00:07]} Nf6 {[%emt 0:00:35]} 10. Nd5 {[%emt 0:01:44]} Bxd5 {[%emt 0:04:06]} 11. cxd5 {[%emt 0:00:08]} Nd4 {[%emt 0:00:09]} 12. Bg5 {[%emt 0:01:08]} Bg7 {[%emt 0:00:56]} 13. Nd2 {[%emt 0:01:44]} O-O {[%emt 0:07:44]} 14. Nb3 {[%emt 0:01:42]} h6 {[%emt 0:02:43]} 15. Be3 {[%emt 0:02:34]} Nd7 {[%emt 0:06:58]} 16. Rc1 {[%emt 0:09:24]} Rc8 {[%emt 0:14:06]} 17. Rxc8 {[%emt 0:10:47]} Qxc8 {[%emt 0:00:47]} 18. Qd2 {[%emt 0:00:48]} h5 {[%emt 0:26:09]} 19. Rc1 {[%emt 0:03:58]} Qb8 {[%emt 0:03:28]} 20. Qc3 {[%emt 0:15:26]} Nxb3 {[%emt 0:02:54]} 21. Qxb3 {[%emt 0:02:08]} Rc8 {[%emt 0:02:11]} 22. Qd1 {[%emt 0:04:42]} Bf6 {[%emt 0:01:36]} 23. g3 {[%emt 0:11:30]} Rc7 {[%emt 0:04:20]} 24. Bf1 {[%emt 0:04:47]} Bd8 {[%emt 0:03:30]} 25. Bh3 {[%emt 0:02:00]} Nf6 {[%emt 0:01:14]} 26. f3 {[%emt 0:02:00]} Kg7 {[%emt 0:01:31]} 27. Qd2 {[%emt 0:00:43]} Ng8 {[%emt 0:02:26]} 28. Kg2 {[%emt 0:03:08]} Nf6 {[%emt 0:04:20]} 29. Bh6+ {[%emt 0:05:38]} Kg8 {[%emt 0:00:08]} 30. Be3 {[%emt 0:00:27]} Kg7 {[%emt 0:00:38]} 31. Bh6+ {[%emt 0:00:29]} Kg8 {[%emt 0:00:06]} 32. Be3 {[%emt 0:00:19]} 1/2-1/2

[Event "DFMMLV 2024"]
[Site "Braunfels"]
[Date "2024.06.01"]
[Round "4.2"]
[White "Schneider, Jana"]
[Black "Kulovana, Eva"]
[Result "1-0"]
[ECO "C42"]
[WhiteElo "2300"]
[BlackElo "2165"]
[Annotator "RC"]
[PlyCount "79"]
[EventDate "2024.05.30"]
[EventType "team-tourn"]
[EventCountry "GER"]
[SourceTitle "playchess.com"]
[Source "ChessBase"]
[SourceQuality "1"]
[TimeControl "40/5400+30:1800+30"]

1. e4 {[%emt 0:00:04]} e5 {[%emt 0:00:08]} 2. Nf3 {[%emt 0:00:20]} Nf6 {[%emt 0:00:14]} 3. Nxe5 {[%emt 0:09:04]} d6 {[%emt 0:00:11]} 4. Nf3 {[%emt 0:00:13]} Nxe4 {[%emt 0:00:08]} 5. Bd3 {[%emt 0:01:01]} Nf6 {[%emt 0:00:23]} 6. O-O {[%emt 0:00:35]} Be7 {[%emt 0:00:14]} 7. c3 {[%emt 0:00:22]} O-O {[%emt 0:00:26]} 8. Bc2 {[%emt 0:00:18]} b6 {[%emt 0:02:08]} 9. d4 {[%emt 0:03:13]} Bb7 {[%emt 0:01:19]} 10. Bg5 {[%emt 0:03:20]} Nbd7 {[%emt 0:01:02]} 11. Re1 {[%emt 0:02:06]} Re8 {[%emt 0:01:17]} 12. Nbd2 {[%emt 0:03:50]} Nf8 {[%emt 0:01:51]} 13. Nf1 {[%emt 0:03:01]} Ng6 {[%emt 0:08:25]} 14. Ng3 {[%emt 0:05:44]} Nd7 {[%emt 0:16:25]} 15. Bd2 {[%emt 0:04:49]} a6 {[%emt 0:04:26]} 16. Re3 {[%emt 0:10:16]} Ndf8 {[%emt 0:06:47]} 17. Nf5 {[%emt 0:07:10]} Bf6 {[%emt 0:01:19]} 18. Rxe8 {[%emt 0:01:44]} Qxe8 {[%emt 0:00:07]} 19. h4 {[%emt 0:00:57]} Ne6 {[%emt 0:14:18]} 20. h5 {[%emt 0:03:01]} Ngf4 {[%emt 0:10:28]} 21. N3h4 {[%emt 0:00:28]} Qb5 {[%emt 0:27:08]} 22. Kh2 {[%emt 0:20:16]} Bxh4 {[%emt 0:00:41]} 23. Bxf4 {[%emt 0:01:31]} Nxf4 {[%emt 0:01:43]} 24. Qg4 {[%emt 0:00:36]} Bf6 {[%emt 0:00:21]} 25. Qxf4 {[%emt 0:01:05]} Qxb2 {[%emt 0:00:23]} 26. Rc1 {[%emt 0:00:31]} Re8 {[%emt 0:00:33]} 27. Bd3 {[%emt 0:04:19]} Qxa2 {[%emt 0:00:33]} 28. c4 {[%emt 0:05:54]} Qa3 {[%emt 0:00:42]} 29. Rd1 {[%emt 0:01:16]} Qa4 {[%emt 0:00:27]} 30. Rc1 {[%emt 0:04:04]} Bc8 {[%emt 0:00:35]} 31. Nxg7 {[%emt 0:00:30]} Bxg7 {[%emt 0:00:28]} 32. h6 {[%emt 0:00:04]} Qa5 {[%emt 0:00:37]} 33. c5 {[%emt 0:00:19]} bxc5 {[%emt 0:00:38]} 34. Qg5 {[%emt 0:00:23]} Kf8 {[%emt 0:00:05]} 35. hxg7+ {[%emt 0:00:57]} Kg8 {[%emt 0:00:05]} 36. Qh6 {[%emt 0:00:06]} f5 {[%emt 0:00:21]} 37. Bc4+ {[%emt 0:00:04]} Be6 {[%emt 0:00:46]} 38. Bxe6+ {[%emt 0:00:06]} Rxe6 {[%emt 0:00:04]} 39. Qxe6+ {[%emt 0:00:05]} Kxg7 {[%emt 0:00:04]} 40. dxc5 {[%emt 0:00:44]} 1-0

[Event "DFMMLV 2024"]
[Site "Braunfels"]
[Date "2024.06.01"]
[Round "4.3"]
[White "Trunz, Michelle"]
[Black "Hrebenshchykova, Yelyzaveta"]
[Result "1/2-1/2"]
[ECO "E48"]
[WhiteElo "2048"]
[BlackElo "2272"]
[Annotator "RC"]
[PlyCount "109"]
[EventDate "2024.05.30"]
[EventType "team-tourn"]
[EventCountry "GER"]
[SourceTitle "playchess.com"]
[Source "ChessBase"]
[SourceQuality "1"]
[TimeControl "40/5400+30:1800+30"]

1. d4 {[%emt 0:00:01]} Nf6 {[%emt 0:00:33]} 2. c4 {[%emt 0:00:07]} e6 {[%emt 0:04:41]} 3. Nc3 {[%emt 0:00:06]} Bb4 {[%emt 0:00:11]} 4. e3 {[%emt 0:00:16]} O-O {[%emt 0:02:34]} 5. Bd3 {[%emt 0:02:29]} d5 {[%emt 0:01:25]} 6. Nge2 {[%emt 0:00:59]} dxc4 {[%emt 0:20:56]} 7. Bxc4 {[%emt 0:02:03]} c5 {[%emt 0:00:04]} 8. O-O {[%emt 0:01:57]} cxd4 {[%emt 0:05:44]} 9. exd4 {[%emt 0:00:04]} Nbd7 {[%emt 0:06:26]} 10. Bg5 {[%emt 0:11:47]} Nb6 {[%emt 0:01:24]} 11. Bd3 {[%emt 0:01:09]} Bd7 {[%emt 0:03:26]} 12. Be4 {[%emt 0:07:39]} Bc6 {[%emt 0:11:21]} 13. Bxc6 {[%emt 0:00:07]} bxc6 {[%emt 0:00:03]} 14. Ne4 {[%emt 0:02:59]} Be7 {[%emt 0:00:41]} 15. Bxf6 {[%emt 0:00:42]} Bxf6 {[%emt 0:00:05]} 16. Rc1 {[%emt 0:00:22]} Be7 {[%emt 0:01:22]} 17. Qd3 {[%emt 0:06:07]} Qd5 {[%emt 0:00:58]} 18. Nf4 {[%emt 0:04:48]} Qf5 {[%emt 0:08:46]} 19. Qe3 {[%emt 0:08:09]} Rac8 {[%emt 0:00:05]} 20. Ng3 {[%emt 0:09:08]} Qg5 {[%emt 0:00:18]} 21. Ne4 {[%emt 0:04:47]} Qb5 {[%emt 0:00:43]} 22. Nc5 {[%emt 0:02:00]} Bg5 {[%emt 0:09:15]} 23. Qg3 {[%emt 0:03:51]} Bxf4 {[%emt 0:00:06]} 24. Qxf4 {[%emt 0:00:01]} Qxb2 {[%emt 0:00:12]} 25. a4 {[%emt 0:01:20]} Rfd8 {[%emt 0:00:20]} 26. Rfd1 {[%emt 0:00:41]} Nd5 {[%emt 0:04:33]} 27. Qf3 {[%emt 0:03:01]} Rb8 {[%emt 0:02:19]} 28. g3 {[%emt 0:03:50]} h6 {[%emt 0:00:18]} 29. a5 {[%emt 0:02:36]} Ne7 {[%emt 0:01:29]} 30. Qe4 {[%emt 0:01:51]} Qa2 {[%emt 0:02:28]} 31. a6 {[%emt 0:02:19]} Rb4 {[%emt 0:04:03]} 32. Nb7 {[%emt 0:08:12]} Rd7 {[%emt 0:02:28]} 33. Nc5 {[%emt 0:00:43]} Rd8 {[%emt 0:00:10]} 34. Nb7 {[%emt 0:00:06]} Rd5 {[%emt 0:03:53]} 35. Nc5 {[%emt 0:02:48]} Nf5 {[%emt 0:00:21]} 36. Nxe6 {[%emt 0:01:08]} fxe6 {[%emt 0:03:51]} 37. Qxe6+ {[%emt 0:00:01]} Kh7 {[%emt 0:00:05]} 38. Rxc6 {[%emt 0:00:42]} Rb8 {[%emt 0:00:02]} 39. g4 {[%emt 0:02:10]} Nh4 {[%emt 0:01:04]} 40. Qe4+ {[%emt 0:03:13]} Kh8 {[%emt 0:00:50]} 41. Qf4 {[%emt 0:32:22]} Rbd8 {[%emt 0:07:22]} 42. Rxh6+ {[%emt 0:00:00]} gxh6 {[%emt 0:00:07]} 43. Qxh6+ {[%emt 0:00:00]} Kg8 {[%emt 0:00:17]} 44. Qe6+ {[%emt 0:00:00]} Kg7 {[%emt 0:00:39]} 45. Qe7+ {[%emt 0:00:00]} Kg6 {[%emt 0:02:45]} 46. Qe6+ {[%emt 0:00:00]} Kg5 {[%emt 0:07:54]} 47. Qe7+ {[%emt 0:00:00]} Kxg4 {[%emt 0:09:15]} 48. h3+ {[%emt 0:00:00]} Kh5 {[%emt 0:00:14]} 49. Qh7+ {[%emt 0:00:00]} Kg5 {[%emt 0:00:09]} 50. f4+ {[%emt 0:00:32]} Kf6 {[%emt 0:02:20]} 51. Qxh4+ {[%emt 0:00:19]} Kf7 {[%emt 0:01:31]} 52. Qh7+ {[%emt 0:00:26]} Kf6 {[%emt 0:01:08]} 53. Qh6+ {[%emt 0:00:47]} Kf7 {[%emt 0:00:20]} 54. Qh7+ {[%emt 0:00:07]} Kf6 {[%emt 0:00:22]} 55. Qh6+ {[%emt 0:00:31]} 1/2-1/2

[Event "DFMMLV 2024"]
[Site "Braunfels"]
[Date "2024.06.01"]
[Round "4.4"]
[White "Bardorz, Jana"]
[Black "Hess, Olena"]
[Result "1/2-1/2"]
[ECO "C41"]
[WhiteElo "2051"]
[BlackElo "2041"]
[Annotator "NA RC"]
[PlyCount "113"]
[EventDate "2024.05.30"]
[EventType "team-tourn"]
[EventCountry "GER"]
[SourceTitle "playchess.com"]
[Source "ChessBase"]
[SourceQuality "1"]
[TimeControl "40/5400+30:1800+30"]

1. e4 {[%emt 0:00:07]} d6 {[%emt 0:00:08]} 2. d4 {[%emt 0:00:16]} Nf6 {[%emt 0:00:10]} 3. Nc3 {[%emt 0:00:19]} e5 {[%emt 0:00:20]} 4. Nf3 {[%emt 0:00:37]} Nbd7 {[%emt 0:00:17]} 5. Bc4 {[%emt 0:01:01]} Be7 {[%emt 0:00:08]} 6. O-O {[%emt 0:00:58]} O-O {[%emt 0:00:06]} 7. Re1 {[%emt 0:01:03]} c6 {[%emt 0:00:33]} 8. a4 {[%emt 0:00:13]} Qc7 {[%emt 0:00:30] 8...h6 is setting a new trend.} 9. h3 {[%emt 0:04:09]} b6 {[%emt 0:01:11]} 10. Nh4 {[%emt 0:03:40] C41: Philidor Defence.} g6 {[%emt 0:03:49]} 11. Bh6 {[%emt 0:00:33]} Re8 {[%emt 0:00:15]} 12. Nf3 {[%emt 0:00:29]} Bf8 {[%emt 0:00:34]} 13. Bxf8 $146 {[%emt 0:00:36]} ({Predecessor:} 13. Qd2 Bb7 14. Rad1 Rad8 15. Bg5 Bg7 16. d5 c5 17. Nh2 Ra8 18. Be2 a6 19. Ng4 Nxg4 20. hxg4 {½-½ Belikov,V (2494)-Varavin,V (2399) Alushta Summer 4th 2004 (3)}) 13... Rxf8 {[%emt 0:00:11]} 14. Qd2 {[%emt 0:09:58]} Kg7 {[%emt 0:01:38]} 15. Rad1 {[%emt 0:03:33]} Bb7 {[%emt 0:07:18]} 16. dxe5 {[%emt 0:08:36]} dxe5 {[%emt 0:04:50]} 17. Qd6 {[%emt 0:05:53]} Qxd6 {[%emt 0:05:49]} 18. Rxd6 {[%emt 0:00:06]} Rae8 {[%emt 0:00:36]} 19. b4 {[%emt 0:05:43]} Re7 {[%emt 0:01:29]} 20. Nh2 {[%emt 0:08:19]} Ne8 {[%emt 0:01:53]} 21. Rd2 {[%emt 0:00:42]} Nc7 {[%emt 0:03:26]} 22. Red1 {[%emt 0:04:32]} Nf6 {[%emt 0:06:04]} 23. f3 {[%emt 0:01:41]} Ne6 {[%emt 0:10:01]} 24. Bxe6 {[%emt 0:00:45]} Rxe6 {[%emt 0:00:02]} 25. Nf1 {[%emt 0:07:01]} Re7 {[%emt 0:10:20]} 26. Ne3 {[%emt 0:04:56]} Rc8 {[%emt 0:14:00]} 27. Nc4 {[%emt 0:08:21]} Rcc7 {[%emt 0:00:53]} 28. Nd6 {[%emt 0:02:57]} ({White should try} 28. a5 $16) 28... Bc8 {[%emt 0:07:33]} 29. Nb1 {[%emt 0:05:06]} Be6 {[%emt 0:05:50]} 30. Na3 {[%emt 0:00:24]} Ne8 {[%emt 0:01:09]} (30... c5 $5 31. b5 c4 $11) 31. Ndc4 {[%emt 0:03:08]} f6 {[%emt 0:00:33]} 32. Ne3 {[%emt 0:00:46]} Red7 $11 {[%emt 0:01:03]} 33. b5 {[%emt 0:02:34]} Rxd2 {[%emt 0:04:06]} 34. Rxd2 {[%emt 0:00:07]} Rd7 {[%emt 0:00:13]} 35. Rxd7+ {[%emt 0:01:45]} Bxd7 {[%emt 0:00:01]} 36. bxc6 {[%emt 0:03:43]} Bxc6 {[%emt 0:00:02]} 37. Nb5 {[%emt 0:00:34]} a6 {[%emt 0:00:03]} 38. Nc3 {[%emt 0:00:32]} Nd6 {[%emt 0:08:26]} 39. Ned5 {[%emt 0:02:01]} b5 {[%emt 0:02:37]} 40. Nb4 {[%emt 0:01:10]} Bd7 {[%emt 0:00:49]} 41. Nxa6 {[%emt 0:04:02]} bxa4 {[%emt 0:05:39]} 42. Nc5 {[%emt 0:00:36]} Bc6 {[%emt 0:00:56]} 43. N3xa4 {[%emt 0:01:27]} f5 {[%emt 0:02:12]} 44. Nc3 {[%emt 0:05:06]} Nc4 {[%emt 0:02:46]} 45. Nd5 {[%emt 0:02:47]} fxe4 {[%emt 0:07:54]} 46. Ne6+ {[%emt 0:03:51]} Kh8 {[%emt 0:03:14]} 47. fxe4 {[%emt 0:04:40]} Nd6 {[%emt 0:00:44]} 48. Nf6 {[%emt 0:04:01]} Nxe4 {[%emt 0:04:48]} 49. Nd8 {[%emt 0:01:56]} Nxf6 {[%emt 0:00:56]} 50. Nxc6 {[%emt 0:00:07]} Nd7 {[%emt 0:00:11]} 51. Kf2 {[%emt 0:00:39]} Kg7 {[%emt 0:00:15]} 52. Ke3 {[%emt 0:00:52]} Kf6 {[%emt 0:00:42]} 53. Nb4 {[%emt 0:01:33]} Ke6 {[%emt 0:01:19]} 54. Kd3 {[%emt 0:03:12]} Kd6 {[%emt 0:01:24]} 55. Ke4 {[%emt 0:02:16]} Nf6+ {[%emt 0:02:18]} 56. Ke3 {[%emt 0:00:11]} Nd7 {[%emt 0:01:33]} 57. Ke4 {[%emt 0:02:50]} 1/2-1/2

[Event "DFMMLV 2024"]
[Site "Braunfels"]
[Date "2024.06.01"]
[Round "4.5"]
[White "Trunz, Elena"]
[Black "Vidonyak, Nellya"]
[Result "0-1"]
[ECO "B12"]
[WhiteElo "2107"]
[BlackElo "2098"]
[Annotator "NA RC"]
[PlyCount "68"]
[EventDate "2024.05.30"]
[EventType "team-tourn"]
[EventCountry "GER"]
[SourceTitle "playchess.com"]
[Source "ChessBase"]
[SourceQuality "1"]
[TimeControl "40/5400+30:1800+30"]

1. e4 {[%emt 0:00:02]} d6 {[%emt 0:00:27]} 2. d4 {[%emt 0:00:27]} c6 {[%emt 0:01:56]} 3. Nc3 {[%emt 0:03:35]} Qc7 {[%emt 0:02:22]} 4. Nf3 {[%emt 0:01:49]} e5 {[%emt 0:03:28]} 5. Be3 {[%emt 0:02:48]} Nf6 {[%emt 0:00:51]} 6. h3 {[%emt 0:02:11] B12: Caro-Kann: Advance Variation.} b5 {[%emt 0:03:16]} 7. a3 {[%emt 0:01:50]} Bb7 {[%emt 0:07:06]} 8. g4 {[%emt 0:03:46]} a6 {[%emt 0:05:04]} 9. g5 {[%emt 0:12:25]} exd4 {[%emt 0:01:41]} 10. Nxd4 {[%emt 0:02:04]} Nfd7 {[%emt 0:09:29]} 11. Qd2 {[%emt 0:08:20]} c5 {[%emt 0:02:23] [#]} 12. Nf5 {[%emt 0:01:52]} (12. Nb3 $1 $16) 12... g6 {[%emt 0:00:55]} 13. Nh6 {[%emt 0:06:00]} Nb6 {[%emt 0:07:25]} 14. O-O-O {[%emt 0:06:57]} N8d7 {[%emt 0:03:18]} 15. Nd5 {[%emt 0:24:06]} Bxd5 {[%emt 0:03:40]} 16. exd5 {[%emt 0:00:08]} Bxh6 {[%emt 0:01:46]} 17. gxh6 {[%emt 0:00:13]} O-O-O {[%emt 0:00:26]} 18. h4 {[%emt 0:05:36]} Rde8 {[%emt 0:05:55]} 19. Bf4 {[%emt 0:01:42]} f6 {[%emt 0:04:48]} 20. Bg3 {[%emt 0:03:15]} (20. Qc3 $14 {is more appropriate.}) 20... Ne5 {[%emt 0:04:35]} (20... Rhf8 $11) 21. Bh3+ {[%emt 0:00:51]} f5 {[%emt 0:01:06]} 22. h5 {[%emt 0:00:51]} Nbc4 {[%emt 0:03:10]} 23. Qc3 {[%emt 0:01:52]} Kb7 {[%emt 0:03:30]} ({Better is} 23... g5 $1 $14) 24. hxg6 {[%emt 0:01:14]} hxg6 {[%emt 0:00:10] [#]} 25. Bf4 $2 {[%emt 0:00:21]} (25. Rde1 $1 $18) 25... a5 $2 {[%emt 0:05:53]} (25... Qd8 $11 {and Black has nothing to worry.}) 26. Rdg1 {[%emt 0:01:51]} b4 {[%emt 0:00:47]} 27. Qb3 {[%emt 0:00:25]} Qd7 {[%emt 0:04:49] [#]} 28. axb4 {[%emt 0:03:15]} (28. Bf1 $1 $16) 28... axb4 {[%emt 0:00:28]} 29. Kb1 {[%emt 0:00:58] [#]} Ra8 $17 {[%emt 0:00:42]} 30. Rd1 {[%emt 0:00:33]} Qd8 {[%emt 0:03:18]} 31. c3 {[%emt 0:01:08]} Qh4 {[%emt 0:02:28]} 32. cxb4 {[%emt 0:01:46]} Qxf4 {[%emt 0:00:32]} 33. bxc5+ {[%emt 0:00:03]} Kc8 {[%emt 0:00:33]} 34. Qc2 {[%emt 0:01:15]} Rb8 {[%emt 0:01:28]} 0-1

[Event "DFMMLV 2024"]
[Site "Braunfels"]
[Date "2024.06.01"]
[Round "4.6"]
[White "Wagner, Margarethe"]
[Black "Freitag, Julia"]
[Result "1/2-1/2"]
[ECO "C02"]
[WhiteElo "2011"]
[BlackElo "2084"]
[Annotator "NA RC"]
[PlyCount "60"]
[EventDate "2024.05.30"]
[EventType "team-tourn"]
[EventCountry "GER"]
[SourceTitle "playchess.com"]
[Source "ChessBase"]
[SourceQuality "1"]
[TimeControl "40/5400+30:1800+30"]

1. e4 {[%emt 0:00:01]} e6 {[%emt 0:00:04]} 2. d4 {[%emt 0:00:06]} d5 {[%emt 0:00:05]} 3. e5 {[%emt 0:00:06]} c5 {[%emt 0:00:04]} 4. c3 {[%emt 0:00:06]} Nc6 {[%emt 0:00:11]} 5. Nf3 {[%emt 0:00:07]} Qb6 {[%emt 0:00:09]} 6. a3 {[%emt 0:00:11]} c4 {[%emt 0:00:11]} 7. Nbd2 {[%emt 0:00:16]} Na5 {[%emt 0:00:13]} 8. Be2 {[%emt 0:00:37]} Bd7 {[%emt 0:00:08]} 9. O-O {[%emt 0:00:20]} Be7 {[%emt 0:04:26]} 10. Ne1 {[%emt 0:08:37] C02: French: Advance Variation.} Nb3 {[%emt 0:10:06]} 11. Nxb3 {[%emt 0:07:05]} Ba4 {[%emt 0:00:18]} 12. Be3 {[%emt 0:01:55]} Bxb3 {[%emt 0:00:24]} 13. Qd2 {[%emt 0:00:10]} a5 {[%emt 0:02:18]} 14. f4 {[%emt 0:04:28]} g6 {[%emt 0:21:55]} 15. g4 {[%emt 0:09:55]} h5 {[%emt 0:04:21]} 16. h3 {[%emt 0:11:25]} O-O-O {[%emt 0:07:18] [#]} 17. Ng2 {[%emt 0:05:47]} ({Better is} 17. f5 $1 $16) 17... f5 {[%emt 0:16:43]} (17... hxg4 $11 18. hxg4 f5) 18. gxh5 {[%emt 0:19:36]} gxh5 {[%emt 0:00:15]} 19. Kh2 {[%emt 0:01:51]} Nh6 {[%emt 0:03:37]} 20. Ne1 {[%emt 0:05:21]} Rdg8 {[%emt 0:01:39]} 21. Rg1 {[%emt 0:04:09]} Qd8 {[%emt 0:08:40]} 22. Nf3 {[%emt 0:03:32]} Ng4+ {[%emt 0:01:29]} 23. Kh1 {[%emt 0:00:08]} Nxe3 {[%emt 0:02:13]} 24. Qxe3 {[%emt 0:00:02]} Bc2 {[%emt 0:05:05]} 25. Kh2 $11 {[%emt 0:06:56]} h4 {[%emt 0:01:21]} 26. Rxg8 {[%emt 0:04:16]} Rxg8 {[%emt 0:00:52]} 27. Rg1 {[%emt 0:00:07]} Be4 {[%emt 0:04:51]} 28. Rxg8 {[%emt 0:02:18]} Qxg8 {[%emt 0:00:02]} 29. Qg1 {[%emt 0:00:07]} Qxg1+ {[%emt 0:00:59]} 30. Kxg1 {[%emt 0:01:25]} Bxf3 {[%emt 0:01:48]} 1/2-1/2